[Event "*** SCC Grand Prix: Titled Tuesday Blitz"]
[Site "Chess.com"]
[Date "2020.07.07"]
[Round "1"]
[White "DariaVoit"]
[Black "Klaus1995"]
[Result "1-0"]
[WhiteElo "2473"]
[BlackElo "1860"]
[TimeControl "180+1"]
[EndTime "10:05:45 PDT"]
[Termination "DariaVoit won by resignation"]

1. d4 {[%clk 0:03:00.9]} 1... Nf6 {[%clk 0:02:55.2]} 2. Nf3 {[%clk 0:03:01.1]}
2... e6 {[%clk 0:02:56.1]} 3. c4 {[%clk 0:03:01]} 3... d5 {[%clk 0:02:56.4]} 4.
g3 {[%clk 0:03:01.3]} 4... c5 {[%clk 0:02:56]} 5. cxd5 {[%clk 0:03:00.4]} 5...
Nxd5 {[%clk 0:02:55]} 6. Bg2 {[%clk 0:02:59.9]} 6... Be7 {[%clk 0:02:54]} 7. O-O
{[%clk 0:02:59.5]} 7... O-O {[%clk 0:02:53.6]} 8. e4 {[%clk 0:02:57.7]} 8... Nf6
{[%clk 0:02:50]} 9. Nc3 {[%clk 0:02:57.8]} 9... Nc6 {[%clk 0:02:48.8]} 10. d5
{[%clk 0:02:54.6]} 10... exd5 {[%clk 0:02:48]} 11. exd5 {[%clk 0:02:55.5]} 11...
Nb4 {[%clk 0:02:44.4]} 12. Ne5 {[%clk 0:02:51.9]} 12... Bd6 {[%clk 0:02:42.4]}
13. Nc4 {[%clk 0:02:50.7]} 13... b6 {[%clk 0:02:17.3]} 14. a3 {[%clk 0:02:27.4]}
14... Na6 {[%clk 0:02:14.4]} 15. Nb5 {[%clk 0:02:20.3]} 15... Ne8 {[%clk
0:01:55.2]} 16. Re1 {[%clk 0:02:19.8]} 16... Nac7 {[%clk 0:01:47.8]} 17. Nbxd6
{[%clk 0:02:10.2]} 17... Nxd6 {[%clk 0:01:45.7]} 18. Nxd6 {[%clk 0:02:11.1]}
18... Qxd6 {[%clk 0:01:45.5]} 19. Bf4 {[%clk 0:02:11.7]} 19... Qg6 {[%clk
0:01:00.6]} 20. d6 {[%clk 0:02:10.3]} 20... Ne6 {[%clk 0:01:00.2]} 21. d7 {[%clk
0:01:22]} 21... Bxd7 {[%clk 0:00:43.3]} 22. Bxa8 {[%clk 0:01:09.3]} 22... Nxf4
{[%clk 0:00:37.1]} 23. Qxd7 {[%clk 0:01:08.1]} 23... Nh3+ {[%clk 0:00:29.1]} 24.
Qxh3 {[%clk 0:01:04.9]} 24... Rxa8 {[%clk 0:00:27.6]} 25. Qd7 {[%clk 0:01:03.6]}
25... f6 {[%clk 0:00:23.7]} 26. Qd5+ {[%clk 0:01:02.1]} 26... Kh8 {[%clk
0:00:23.3]} 27. Qxa8+ {[%clk 0:01:02.5]} 1-0

[Event "*** SCC Grand Prix: Titled Tuesday Blitz"]
[Site "Chess.com"]
[Date "2020.07.07"]
[Round "1"]
[White "francyIM"]
[Black "fridaywins"]
[Result "1-0"]
[WhiteElo "2606"]
[BlackElo "2276"]
[TimeControl "180+1"]
[EndTime "10:05:47 PDT"]
[Termination "francyIM won by resignation"]

1. d4 {[%clk 0:03:00.9]} 1... Nf6 {[%clk 0:02:58.8]} 2. c4 {[%clk 0:03:00.1]}
2... g6 {[%clk 0:02:57.3]} 3. g3 {[%clk 0:02:58.3]} 3... Bg7 {[%clk 0:02:55.2]}
4. Bg2 {[%clk 0:02:57.6]} 4... O-O {[%clk 0:02:56.1]} 5. Nc3 {[%clk 0:02:57.3]}
5... c6 {[%clk 0:02:41.7]} 6. e4 {[%clk 0:02:55.7]} 6... d6 {[%clk 0:02:41.5]}
7. Nge2 {[%clk 0:02:51.9]} 7... e5 {[%clk 0:02:41.5]} 8. O-O {[%clk 0:02:46.5]}
8... Na6 {[%clk 0:02:41]} 9. h3 {[%clk 0:02:46.2]} 9... exd4 {[%clk 0:02:31.4]}
10. Nxd4 {[%clk 0:02:42]} 10... Re8 {[%clk 0:02:31.3]} 11. Re1 {[%clk 0:02:42]}
11... Nc5 {[%clk 0:02:30.8]} 12. Qc2 {[%clk 0:02:40.9]} 12... a5 {[%clk
0:02:29.1]} 13. Be3 {[%clk 0:02:36.5]} 13... Qc7 {[%clk 0:02:28.7]} 14. Rad1
{[%clk 0:02:35.7]} 14... Bd7 {[%clk 0:02:06.1]} 15. f4 {[%clk 0:02:25]} 15...
Rad8 {[%clk 0:02:05.9]} 16. Bf2 {[%clk 0:02:25]} 16... Bc8 {[%clk 0:02:05.1]}
17. b3 {[%clk 0:02:22.7]} 17... Re7 {[%clk 0:01:58.2]} 18. Re2 {[%clk
0:02:11.2]} 18... Rde8 {[%clk 0:01:57.9]} 19. Ndb5 {[%clk 0:02:07]} 19... cxb5
{[%clk 0:01:45.3]} 20. Nxb5 {[%clk 0:02:07.2]} 20... Qb8 {[%clk 0:01:24.7]} 21.
Nxd6 {[%clk 0:02:06.8]} 21... Ncxe4 {[%clk 0:01:22.9]} 22. Nxe8 {[%clk
0:02:06.1]} 22... Rxe8 {[%clk 0:01:14.2]} 23. Bxe4 {[%clk 0:02:04.8]} 23... Nxe4
{[%clk 0:01:13.4]} 24. Rxe4 {[%clk 0:02:05]} 24... Bxh3 {[%clk 0:01:03.9]} 25.
Rxe8+ {[%clk 0:02:00.5]} 25... Qxe8 {[%clk 0:01:03.1]} 26. Qd3 {[%clk
0:01:59.7]} 26... Bf6 {[%clk 0:01:00.6]} 27. Re1 {[%clk 0:01:53.3]} 27... Qc8
{[%clk 0:00:56.3]} 28. Qe4 {[%clk 0:01:45.1]} 28... Be6 {[%clk 0:00:52.2]} 29.
Bd4 {[%clk 0:01:44.6]} 29... Bxd4+ {[%clk 0:00:50.3]} 30. Qxd4 {[%clk
0:01:45.5]} 30... h5 {[%clk 0:00:48.1]} 31. Kf2 {[%clk 0:01:43.4]} 31... Qc6
{[%clk 0:00:48.1]} 32. Re5 {[%clk 0:01:41.7]} 32... a4 {[%clk 0:00:47.5]} 33.
Rc5 {[%clk 0:01:33.5]} 33... Qa6 {[%clk 0:00:46]} 34. b4 {[%clk 0:01:32.8]}
34... a3 {[%clk 0:00:45.5]} 35. Ra5 {[%clk 0:01:24.6]} 35... Qc6 {[%clk
0:00:43.5]} 36. Ra8+ {[%clk 0:01:20.1]} 36... Bc8 {[%clk 0:00:40.5]} 37. Qc5
{[%clk 0:01:19.9]} 1-0

[Event "*** SCC Grand Prix: Titled Tuesday Blitz"]
[Site "Chess.com"]
[Date "2020.07.07"]
[Round "1"]
[White "PavelShkapenko"]
[Black "allvim"]
[Result "1-0"]
[WhiteElo "2596"]
[BlackElo "2265"]
[TimeControl "180+1"]
[EndTime "10:05:47 PDT"]
[Termination "PavelShkapenko won by resignation"]

1. e4 {[%clk 0:03:00.9]} 1... c5 {[%clk 0:02:57.4]} 2. c3 {[%clk 0:03:00.7]}
2... d5 {[%clk 0:02:53.5]} 3. exd5 {[%clk 0:03:00.6]} 3... Qxd5 {[%clk
0:02:54.1]} 4. Nf3 {[%clk 0:03:01.2]} 4... Nc6 {[%clk 0:02:48.4]} 5. d4 {[%clk
0:02:59.3]} 5... Bg4 {[%clk 0:02:44.4]} 6. Be2 {[%clk 0:02:57.4]} 6... Nf6
{[%clk 0:02:43.9]} 7. h3 {[%clk 0:02:55.5]} 7... Bh5 {[%clk 0:02:42.3]} 8. c4
{[%clk 0:02:55.6]} 8... Qd8 {[%clk 0:02:41.4]} 9. d5 {[%clk 0:02:52.5]} 9...
Bxf3 {[%clk 0:02:40.8]} 10. Bxf3 {[%clk 0:02:47.5]} 10... Nd4 {[%clk 0:02:40.3]}
11. Be3 {[%clk 0:02:44.6]} 11... Nxf3+ {[%clk 0:02:35]} 12. Qxf3 {[%clk
0:02:44.1]} 12... Rc8 {[%clk 0:02:27]} 13. O-O {[%clk 0:02:38.4]} 13... g6
{[%clk 0:02:27.4]} 14. Bf4 {[%clk 0:02:12.8]} 14... Bg7 {[%clk 0:02:26.4]} 15.
Be5 {[%clk 0:02:07.9]} 15... O-O {[%clk 0:02:26.2]} 16. Nc3 {[%clk 0:02:08.5]}
16... Nd7 {[%clk 0:02:12.3]} 17. Bxg7 {[%clk 0:02:06.3]} 17... Kxg7 {[%clk
0:02:13.2]} 18. Rfe1 {[%clk 0:02:06.5]} 18... Re8 {[%clk 0:02:08.9]} 19. Ne4
{[%clk 0:02:02.1]} 19... Qc7 {[%clk 0:02:06.3]} 20. Re2 {[%clk 0:01:52.6]} 20...
Ne5 {[%clk 0:01:58.8]} 21. Qc3 {[%clk 0:01:52.5]} 21... f6 {[%clk 0:01:56.4]}
22. Rae1 {[%clk 0:01:47.8]} 22... h6 {[%clk 0:01:53.4]} 23. Nd2 {[%clk
0:01:38.9]} 23... Rcd8 {[%clk 0:01:48.8]} 24. Nf3 {[%clk 0:01:37.3]} 24... Nf7
{[%clk 0:01:42.4]} 25. Re6 {[%clk 0:01:33.9]} 25... Rd6 {[%clk 0:01:32]} 26. Nh4
{[%clk 0:01:17.1]} 26... Rxe6 {[%clk 0:01:26.2]} 27. Rxe6 {[%clk 0:01:14.8]}
27... Ng5 {[%clk 0:01:16.2]} 28. Qd3 {[%clk 0:01:04.9]} 28... Nxe6 {[%clk
0:00:41.2]} 29. Qxg6+ {[%clk 0:01:02.8]} 29... Kh8 {[%clk 0:00:35.1]} 30. Qxe8+
{[%clk 0:01:01.2]} 30... Kg7 {[%clk 0:00:33.5]} 1-0

[Event "*** SCC Grand Prix: Titled Tuesday Blitz"]
[Site "Chess.com"]
[Date "2020.07.07"]
[Round "1"]
[White "BabyBoss31"]
[Black "Legendinunknown"]
[Result "0-1"]
[WhiteElo "2203"]
[BlackElo "2557"]
[TimeControl "180+1"]
[EndTime "10:05:48 PDT"]
[Termination "Legendinunknown won by resignation"]

1. d4 {[%clk 0:03:00.9]} 1... d5 {[%clk 0:02:57.9]} 2. c4 {[%clk 0:02:59.9]}
2... c6 {[%clk 0:02:56.6]} 3. Nf3 {[%clk 0:02:55.1]} 3... Nf6 {[%clk 0:02:56.1]}
4. g3 {[%clk 0:02:55]} 4... g6 {[%clk 0:02:54.6]} 5. Bg2 {[%clk 0:02:47.5]} 5...
Bg7 {[%clk 0:02:54.6]} 6. O-O {[%clk 0:02:38.6]} 6... O-O {[%clk 0:02:50.7]} 7.
cxd5 {[%clk 0:02:30]} 7... cxd5 {[%clk 0:02:51.6]} 8. Nc3 {[%clk 0:02:25]} 8...
Nc6 {[%clk 0:02:46.7]} 9. Ne5 {[%clk 0:02:15.8]} 9... Be6 {[%clk 0:02:45.1]} 10.
Nxc6 {[%clk 0:02:08.3]} 10... bxc6 {[%clk 0:02:39.2]} 11. Na4 {[%clk 0:02:07.9]}
11... Nd7 {[%clk 0:02:39]} 12. Bf4 {[%clk 0:01:59]} 12... Qa5 {[%clk 0:02:36.5]}
13. Rc1 {[%clk 0:01:54.7]} 13... Rfc8 {[%clk 0:02:35.9]} 14. b3 {[%clk
0:01:28.8]} 14... Qb5 {[%clk 0:02:24.9]} 15. e3 {[%clk 0:00:51.9]} 15... Bf5
{[%clk 0:02:20.3]} 16. Re1 {[%clk 0:00:51.4]} 16... h5 {[%clk 0:02:15.6]} 17.
Nc5 {[%clk 0:00:46.7]} 17... e5 {[%clk 0:01:57.9]} 18. Nxd7 {[%clk 0:00:27.8]}
18... exf4 {[%clk 0:01:56.7]} 19. Nc5 {[%clk 0:00:27.9]} 19... fxe3 {[%clk
0:01:55.7]} 20. fxe3 {[%clk 0:00:27.1]} 20... Re8 {[%clk 0:01:55.2]} 21. Qe2
{[%clk 0:00:25.1]} 21... Qa5 {[%clk 0:01:52.2]} 22. Qf2 {[%clk 0:00:23.6]} 22...
Bh6 {[%clk 0:01:49.2]} 23. Nb7 {[%clk 0:00:18.7]} 23... Qc7 {[%clk 0:01:46.5]}
24. Nc5 {[%clk 0:00:18.3]} 24... Re7 {[%clk 0:01:45.3]} 25. Rc3 {[%clk
0:00:18.5]} 25... Rae8 {[%clk 0:01:44.4]} 26. b4 {[%clk 0:00:18.9]} 26... Qb6
{[%clk 0:01:41.8]} 27. a3 {[%clk 0:00:18.6]} 27... a5 {[%clk 0:01:41.7]} 28. Rb3
{[%clk 0:00:17.7]} 28... axb4 {[%clk 0:01:40]} 29. axb4 {[%clk 0:00:18.6]} 29...
Qb5 {[%clk 0:01:39.7]} 30. Qf1 {[%clk 0:00:17.1]} 30... Bxe3+ {[%clk 0:01:34.7]}
31. Kh1 {[%clk 0:00:13.3]} 31... Bxd4 {[%clk 0:01:31.2]} 32. Rxe7 {[%clk
0:00:11.9]} 32... Qxf1+ {[%clk 0:01:28.9]} 33. Bxf1 {[%clk 0:00:11.7]} 33...
Rxe7 {[%clk 0:01:29.4]} 0-1

[Event "*** SCC Grand Prix: Titled Tuesday Blitz"]
[Site "Chess.com"]
[Date "2020.07.07"]
[Round "1"]
[White "Na_binci"]
[Black "valeriocarnicelli"]
[Result "0-1"]
[WhiteElo "2049"]
[BlackElo "2496"]
[TimeControl "180+1"]
[EndTime "10:05:48 PDT"]
[Termination "valeriocarnicelli won on time"]

1. d4 {[%clk 0:03:00]} 1... Nf6 {[%clk 0:02:59.9]} 2. c4 {[%clk 0:02:57.3]} 2...
g6 {[%clk 0:02:59.9]} 3. Nc3 {[%clk 0:02:56.1]} 3... Bg7 {[%clk 0:02:59.8]} 4.
e4 {[%clk 0:02:55.3]} 4... d6 {[%clk 0:02:59.6]} 5. Be2 {[%clk 0:02:56.2]} 5...
O-O {[%clk 0:02:59.5]} 6. Nf3 {[%clk 0:02:56.5]} 6... Na6 {[%clk 0:02:58.3]} 7.
O-O {[%clk 0:02:54.8]} 7... e5 {[%clk 0:02:58.5]} 8. d5 {[%clk 0:02:54.4]} 8...
Nc5 {[%clk 0:02:57.2]} 9. Qc2 {[%clk 0:02:54.5]} 9... a5 {[%clk 0:02:57.3]} 10.
b3 {[%clk 0:02:53]} 10... Nh5 {[%clk 0:02:54.9]} 11. Ne1 {[%clk 0:02:44.5]}
11... Nf4 {[%clk 0:02:54.6]} 12. Bf3 {[%clk 0:02:43.2]} 12... f5 {[%clk
0:02:53.5]} 13. Be3 {[%clk 0:02:06.5]} 13... b6 {[%clk 0:02:44.3]} 14. Rb1
{[%clk 0:01:34.6]} 14... Bd7 {[%clk 0:02:35.9]} 15. a3 {[%clk 0:01:33.4]} 15...
g5 {[%clk 0:02:06.4]} 16. b4 {[%clk 0:00:58.4]} 16... g4 {[%clk 0:02:06.2]} 17.
bxc5 {[%clk 0:00:54.3]} 17... gxf3 {[%clk 0:02:05.8]} 18. Nxf3 {[%clk
0:00:55.2]} 18... bxc5 {[%clk 0:02:04.2]} 19. Bxf4 {[%clk 0:00:33.1]} 19... exf4
{[%clk 0:02:04.2]} 20. Qd2 {[%clk 0:00:33.1]} 20... Bxc3 {[%clk 0:01:57.2]} 21.
Qxc3 {[%clk 0:00:31.5]} 21... fxe4 {[%clk 0:01:57.5]} 22. Nd2 {[%clk 0:00:29.9]}
22... Bf5 {[%clk 0:01:56.1]} 23. Rb7 {[%clk 0:00:24.8]} 23... Qd7 {[%clk
0:01:47.3]} 24. Rfb1 {[%clk 0:00:20.1]} 24... Rae8 {[%clk 0:01:40.5]} 25. Re1
{[%clk 0:00:17.9]} 25... Qf7 {[%clk 0:01:38]} 26. Qxa5 {[%clk 0:00:13.7]} 26...
e3 {[%clk 0:01:36.9]} 27. fxe3 {[%clk 0:00:12.4]} 27... fxe3 {[%clk 0:01:36.8]}
28. Nf3 {[%clk 0:00:10.3]} 28... Re7 {[%clk 0:01:36.7]} 29. Qc3 {[%clk
0:00:08.4]} 29... Rfe8 {[%clk 0:01:28.9]} 30. Rb3 {[%clk 0:00:06.6]} 30... Bg4
{[%clk 0:01:28.2]} 0-1

[Event "*** SCC Grand Prix: Titled Tuesday Blitz"]
[Site "Chess.com"]
[Date "2020.07.07"]
[Round "1"]
[White "Susal_De_Silva"]
[Black "GukeshDommaraju"]
[Result "0-1"]
[WhiteElo "2380"]
[BlackElo "2710"]
[TimeControl "180+1"]
[EndTime "10:05:49 PDT"]
[Termination "GukeshDommaraju won by resignation"]

1. e4 {[%clk 0:03:00.9]} 1... c5 {[%clk 0:02:59.7]} 2. Nf3 {[%clk 0:03:01.4]}
2... d6 {[%clk 0:02:59.6]} 3. Bb5+ {[%clk 0:03:01.5]} 3... Bd7 {[%clk
0:02:59.3]} 4. Bxd7+ {[%clk 0:03:00.5]} 4... Qxd7 {[%clk 0:03:00.2]} 5. c4
{[%clk 0:03:00.8]} 5... Nf6 {[%clk 0:03:00.3]} 6. Nc3 {[%clk 0:03:00.5]} 6...
Nc6 {[%clk 0:03:00.5]} 7. O-O {[%clk 0:03:00.3]} 7... g6 {[%clk 0:03:00.3]} 8.
d4 {[%clk 0:03:00.8]} 8... cxd4 {[%clk 0:02:59.8]} 9. Nxd4 {[%clk 0:03:01.5]}
9... Bg7 {[%clk 0:03:00.3]} 10. Be3 {[%clk 0:02:59.1]} 10... O-O {[%clk
0:03:00.3]} 11. h3 {[%clk 0:02:58]} 11... Rac8 {[%clk 0:02:55.5]} 12. b3 {[%clk
0:02:56.5]} 12... e6 {[%clk 0:02:52.1]} 13. Qd2 {[%clk 0:02:50.4]} 13... Rfd8
{[%clk 0:02:41.2]} 14. Rad1 {[%clk 0:02:21.1]} 14... a6 {[%clk 0:02:22.4]} 15.
a4 {[%clk 0:02:08]} 15... Qe8 {[%clk 0:02:11.4]} 16. Nde2 {[%clk 0:02:00.7]}
16... Nb4 {[%clk 0:02:04.3]} 17. Bb6 {[%clk 0:01:56.3]} 17... Rd7 {[%clk
0:02:04]} 18. Ng3 {[%clk 0:01:48.4]} 18... d5 {[%clk 0:01:52]} 19. exd5 {[%clk
0:01:40.2]} 19... exd5 {[%clk 0:01:51.3]} 20. Rfe1 {[%clk 0:01:40.2]} 20... Qf8
{[%clk 0:01:43.5]} 21. cxd5 {[%clk 0:01:29]} 21... Nfxd5 {[%clk 0:01:34]} 22.
Nxd5 {[%clk 0:01:23.7]} 22... Nxd5 {[%clk 0:01:21.5]} 23. Bd4 {[%clk 0:00:55.4]}
23... Nc3 {[%clk 0:01:18.2]} 24. Bxg7 {[%clk 0:00:36.5]} 24... Rxd2 {[%clk
0:01:17.3]} 25. Bxf8 {[%clk 0:00:36.1]} 25... Rxd1 {[%clk 0:01:16.9]} 26. Rxd1
{[%clk 0:00:36.4]} 26... Nxd1 {[%clk 0:01:17.7]} 27. Bd6 {[%clk 0:00:34]} 27...
Rc3 {[%clk 0:01:13]} 28. b4 {[%clk 0:00:32.4]} 28... Rc1 {[%clk 0:01:12.6]} 29.
Nf1 {[%clk 0:00:30.3]} 29... Nc3 {[%clk 0:01:12]} 30. a5 {[%clk 0:00:28.8]}
30... Ne2+ {[%clk 0:01:12]} 0-1

[Event "*** SCC Grand Prix: Titled Tuesday Blitz"]
[Site "Chess.com"]
[Date "2020.07.07"]
[Round "1"]
[White "Konek-Gorbunok"]
[Black "cassoulet"]
[Result "0-1"]
[WhiteElo "2301"]
[BlackElo "2626"]
[TimeControl "180+1"]
[EndTime "10:05:50 PDT"]
[Termination "cassoulet won on time"]

1. d4 {[%clk 0:02:56.6]} 1... d5 {[%clk 0:02:59.6]} 2. Nf3 {[%clk 0:02:57]} 2...
Nf6 {[%clk 0:02:59.8]} 3. g3 {[%clk 0:02:57.9]} 3... g6 {[%clk 0:02:59.2]} 4.
Bg2 {[%clk 0:02:58.2]} 4... Bg7 {[%clk 0:02:59.6]} 5. O-O {[%clk 0:02:58.8]}
5... O-O {[%clk 0:02:56.1]} 6. Ne5 {[%clk 0:02:59.3]} 6... Nbd7 {[%clk
0:02:53.7]} 7. c4 {[%clk 0:02:59.4]} 7... dxc4 {[%clk 0:02:52.9]} 8. Nxc4 {[%clk
0:02:58.5]} 8... Nb6 {[%clk 0:02:47.6]} 9. Ne5 {[%clk 0:02:58.1]} 9... c6 {[%clk
0:02:43.8]} 10. Nc3 {[%clk 0:02:57]} 10... Nfd5 {[%clk 0:02:34.1]} 11. Nf3
{[%clk 0:02:56.9]} 11... Nxc3 {[%clk 0:02:31.3]} 12. bxc3 {[%clk 0:02:56.4]}
12... Nd5 {[%clk 0:02:31.8]} 13. Bb2 {[%clk 0:02:46.9]} 13... Nb6 {[%clk
0:02:30.5]} 14. Qd3 {[%clk 0:02:34.9]} 14... Be6 {[%clk 0:02:19.9]} 15. Nd2
{[%clk 0:02:34.6]} 15... Bd5 {[%clk 0:02:18.8]} 16. e4 {[%clk 0:02:29.7]} 16...
Be6 {[%clk 0:02:18.5]} 17. Rfd1 {[%clk 0:01:49.7]} 17... Na4 {[%clk 0:02:14.2]}
18. Ba3 {[%clk 0:01:46]} 18... Qc7 {[%clk 0:02:08.6]} 19. Rac1 {[%clk
0:01:03.6]} 19... Rfd8 {[%clk 0:02:07.6]} 20. Qc2 {[%clk 0:00:57]} 20... Nb6
{[%clk 0:01:52.4]} 21. Bb4 {[%clk 0:00:49.3]} 21... Nc4 {[%clk 0:01:51.5]} 22.
Nxc4 {[%clk 0:00:47]} 22... Bxc4 {[%clk 0:01:52.4]} 23. a4 {[%clk 0:00:31.7]}
23... e5 {[%clk 0:01:48.7]} 24. Qb2 {[%clk 0:00:18.2]} 24... Qb6 {[%clk
0:01:35.9]} 25. Ba3 {[%clk 0:00:17.1]} 25... Bb3 {[%clk 0:01:32]} 26. Rd2 {[%clk
0:00:12.3]} 26... Bxa4 {[%clk 0:01:31.7]} 27. Qxb6 {[%clk 0:00:06.7]} 27... axb6
{[%clk 0:01:32.6]} 28. Be7 {[%clk 0:00:02.2]} 28... Rd7 {[%clk 0:01:32.3]} 0-1

[Event "*** SCC Grand Prix: Titled Tuesday Blitz"]
[Site "Chess.com"]
[Date "2020.07.07"]
[Round "1"]
[White "RaunakSadhwani2005"]
[Black "Irishchessman16"]
[Result "1-0"]
[WhiteElo "2920"]
[BlackElo "2449"]
[TimeControl "180+1"]
[EndTime "10:05:51 PDT"]
[Termination "RaunakSadhwani2005 won by resignation"]

1. c4 {[%clk 0:02:59.7]} 1... f5 {[%clk 0:02:58.2]} 2. d4 {[%clk 0:02:58.1]}
2... Nf6 {[%clk 0:02:58.3]} 3. Nc3 {[%clk 0:02:58.3]} 3... e6 {[%clk 0:02:57]}
4. a3 {[%clk 0:02:58.2]} 4... b6 {[%clk 0:02:54.8]} 5. Nf3 {[%clk 0:02:53.3]}
5... Bb7 {[%clk 0:02:53.2]} 6. g3 {[%clk 0:02:49.8]} 6... Be7 {[%clk 0:02:34.2]}
7. Bg2 {[%clk 0:02:50]} 7... O-O {[%clk 0:02:34.3]} 8. O-O {[%clk 0:02:50.5]}
8... Qe8 {[%clk 0:02:33]} 9. d5 {[%clk 0:02:49.7]} 9... Ne4 {[%clk 0:02:20.5]}
10. Nxe4 {[%clk 0:02:47.1]} 10... fxe4 {[%clk 0:02:20.3]} 11. Nd4 {[%clk
0:02:48]} 11... exd5 {[%clk 0:02:17.1]} 12. cxd5 {[%clk 0:02:48.9]} 12... Bxd5
{[%clk 0:01:59]} 13. Nb5 {[%clk 0:02:48.6]} 13... c6 {[%clk 0:01:58.9]} 14. Nc7
{[%clk 0:02:48.3]} 14... Qf7 {[%clk 0:01:56.5]} 15. Nxa8 {[%clk 0:02:47]} 15...
Na6 {[%clk 0:01:56.4]} 16. Nxb6 {[%clk 0:01:56.6]} 16... axb6 {[%clk 0:01:55.4]}
17. Be3 {[%clk 0:01:57.1]} 17... Nc5 {[%clk 0:01:51.3]} 18. b4 {[%clk
0:01:52.9]} 18... Nb3 {[%clk 0:01:43]} 19. Rb1 {[%clk 0:01:48.2]} 19... b5
{[%clk 0:01:35.2]} 20. Qc2 {[%clk 0:01:25.1]} 20... Qe6 {[%clk 0:01:33]} 21.
Rfd1 {[%clk 0:01:23.2]} 21... Bc4 {[%clk 0:01:20.6]} 22. Qxe4 {[%clk 0:01:11.5]}
22... Qxe4 {[%clk 0:01:07]} 23. Bxe4 {[%clk 0:01:12.4]} 23... d5 {[%clk
0:01:06.4]} 24. Bc2 {[%clk 0:01:11.9]} 24... d4 {[%clk 0:00:58.3]} 25. Bf4
{[%clk 0:00:59.2]} 25... g5 {[%clk 0:00:51]} 26. Be5 {[%clk 0:00:57.6]} 26... d3
{[%clk 0:00:43.8]} 27. exd3 {[%clk 0:00:50.5]} 1-0

[Event "*** SCC Grand Prix: Titled Tuesday Blitz"]
[Site "Chess.com"]
[Date "2020.07.07"]
[Round "1"]
[White "tk22h"]
[Black "stoleriu"]
[Result "1-0"]
[WhiteElo "2290"]
[BlackElo "2586"]
[TimeControl "180+1"]
[EndTime "10:05:53 PDT"]
[Termination "tk22h won by resignation"]

1. c4 {[%clk 0:03:00.9]} 1... e5 {[%clk 0:02:58.8]} 2. Nc3 {[%clk 0:03:00.1]}
2... Nc6 {[%clk 0:02:59.7]} 3. Nf3 {[%clk 0:02:57.2]} 3... g6 {[%clk 0:03:00.6]}
4. d4 {[%clk 0:02:56.3]} 4... Bg7 {[%clk 0:02:58.8]} 5. dxe5 {[%clk 0:02:54.7]}
5... Nxe5 {[%clk 0:02:59.7]} 6. Nxe5 {[%clk 0:02:54.8]} 6... Bxe5 {[%clk
0:03:00.6]} 7. Bd2 {[%clk 0:02:55.1]} 7... Bg7 {[%clk 0:02:58.1]} 8. g3 {[%clk
0:02:55.2]} 8... Ne7 {[%clk 0:02:56.2]} 9. Bg2 {[%clk 0:02:55.3]} 9... O-O
{[%clk 0:02:56.8]} 10. O-O {[%clk 0:02:54.9]} 10... d6 {[%clk 0:02:57.5]} 11.
Rc1 {[%clk 0:02:54.4]} 11... c6 {[%clk 0:02:51.8]} 12. b3 {[%clk 0:02:53.4]}
12... Be6 {[%clk 0:02:46.9]} 13. h3 {[%clk 0:02:51.4]} 13... Qd7 {[%clk
0:02:46.5]} 14. Kh2 {[%clk 0:02:51]} 14... Rad8 {[%clk 0:02:47]} 15. e3 {[%clk
0:02:50.9]} 15... d5 {[%clk 0:02:47.3]} 16. cxd5 {[%clk 0:02:50.6]} 16... Nxd5
{[%clk 0:02:47.9]} 17. Nxd5 {[%clk 0:02:45]} 17... Bxd5 {[%clk 0:02:48.8]} 18.
Bb4 {[%clk 0:02:45.1]} 18... Rfe8 {[%clk 0:02:46.3]} 19. Bxd5 {[%clk 0:02:39.7]}
19... Qxd5 {[%clk 0:02:47.2]} 20. Qxd5 {[%clk 0:02:39.3]} 20... Rxd5 {[%clk
0:02:48.1]} 21. Rfd1 {[%clk 0:02:38.5]} 21... Red8 {[%clk 0:02:47.8]} 22. Rxd5
{[%clk 0:02:38.2]} 22... Rxd5 {[%clk 0:02:48.7]} 23. Kg2 {[%clk 0:02:38]} 23...
a5 {[%clk 0:02:45.7]} 24. Be1 {[%clk 0:02:37.1]} 24... Kf8 {[%clk 0:02:39.4]}
25. Kf3 {[%clk 0:02:37.1]} 25... Ke7 {[%clk 0:02:39.7]} 26. Ke2 {[%clk
0:02:37.2]} 26... Ke6 {[%clk 0:02:40.2]} 27. Rc4 {[%clk 0:02:36.8]} 27... f5
{[%clk 0:02:38]} 28. Bd2 {[%clk 0:02:35.3]} 28... Be5 {[%clk 0:02:36.9]} 29. e4
{[%clk 0:02:29.8]} 29... fxe4 {[%clk 0:02:34]} 30. Rxe4 {[%clk 0:02:29.2]} 30...
Kf5 {[%clk 0:02:33.3]} 31. Rh4 {[%clk 0:02:19.7]} 31... h5 {[%clk 0:02:32.9]}
32. g4+ {[%clk 0:02:19.6]} 32... hxg4 {[%clk 0:02:33.5]} 33. hxg4+ {[%clk
0:02:19.1]} 33... Kf6 {[%clk 0:02:27.7]} 34. Rh7 {[%clk 0:02:18.3]} 34... Rb5
{[%clk 0:02:27.1]} 35. f4 {[%clk 0:02:14]} 35... Bd4 {[%clk 0:02:25.6]} 36. Kd3
{[%clk 0:02:13.3]} 36... Ba1 {[%clk 0:02:22.7]} 37. Ke4 {[%clk 0:02:07]} 37...
Rd5 {[%clk 0:02:17.4]} 38. Be3 {[%clk 0:02:03.1]} 38... Rb5 {[%clk 0:02:16.9]}
39. Rh1 {[%clk 0:01:53.6]} 39... a4 {[%clk 0:02:14.8]} 40. Rxa1 {[%clk
0:01:52.2]} 40... axb3 {[%clk 0:02:14.6]} 41. axb3 {[%clk 0:01:52.2]} 41... Rxb3
{[%clk 0:02:15.5]} 42. Bd4+ {[%clk 0:01:49.5]} 42... Ke6 {[%clk 0:02:15.2]} 43.
f5+ {[%clk 0:01:49.7]} 43... gxf5+ {[%clk 0:02:16.1]} 44. gxf5+ {[%clk
0:01:49.9]} 44... Kf7 {[%clk 0:02:17]} 45. Rh1 {[%clk 0:01:48.6]} 45... Rb5
{[%clk 0:02:08.5]} 46. Rh7+ {[%clk 0:01:46]} 46... Ke8 {[%clk 0:02:04.7]} 47.
Be5 {[%clk 0:01:41.3]} 47... Rb4+ {[%clk 0:01:59.1]} 48. Ke3 {[%clk 0:01:37.9]}
48... Rb1 {[%clk 0:01:53.3]} 49. Kf4 {[%clk 0:01:35.5]} 49... b5 {[%clk
0:01:46.7]} 50. f6 {[%clk 0:01:33.8]} 50... Rf1+ {[%clk 0:01:43.2]} 51. Ke4
{[%clk 0:01:33.2]} 51... b4 {[%clk 0:01:43.3]} 52. Rb7 {[%clk 0:01:30.2]} 52...
c5 {[%clk 0:01:43.2]} 53. Kd5 {[%clk 0:01:28.3]} 1-0